bitfinex/quotes_SOLUSD_20250731
["timestamp","ask_amount","ask_price","bid_price","bid_amount"]
[1753997222118,3.82910124,174.77,174.76,6.81453904]
[1753997222301,9.97245962,174.77,174.69,47.73453904]
[1753997222506,3.79910124,174.76,174.72,0.67]
[1753997222694,9.55097436,174.77,174.75,6.81453904]
[1753997222895,0.03,174.77,174.76,7.48453904]
[1753997223117,0.03,174.77,174.76,6.81453904]
[1753997224425,0.03,174.77,174.76,7.52453904]
[1753997227813,0.03,174.77,174.76,20.06121129]
[1753997228013,0.2,174.8,174.77,16.78468397]
[1753997228212,0.2,174.8,174.79,6.81453904]
[1753997228620,0.03,174.82,174.79,23.59922301]
[1753997228820,0.03,174.82,174.81,6.81453904]
[1753997229213,0.03,174.82,174.81,7.52453904]
[1753997230413,0.03,174.82,174.81,0.71]
[1753997230617,0.03,174.82,174.81,6.81453904]
[1753997230924,0.03,174.82,174.81,7.52453904]
[1753997231630,0.03,174.82,174.81,6.81453904]
[1753997232000,0.03,174.82,174.81,7.52453904]
[1753997232627,0.03,174.82,174.77,47.19387991]
[1753997232929,0.03,174.82,174.81,6.81453904]
[1753997233428,0.03,174.82,174.81,7.52453904]
[1753997236103,0.03,174.82,174.81,13.81708522]
[1753997236327,0.03,174.82,174.81,7.00254618]
[1753997236527,0.03,174.82,174.81,8.09658869]
[1753997236733,0.03,174.82,174.81,13.81708522]
[1753997237609,0.03,174.82,174.81,7.52453904]
[1753997237807,0.03,174.82,174.81,6.81453904]
[1753997238016,0.03,174.82,174.81,7.52453904]
[1753997239532,0.03,174.82,174.81,6.81453904]
[1753997242312,0.03,174.82,174.81,7.52453904]
[1753997242633,0.03,174.82,174.81,13.24503557]
[1753997242833,0.03,174.84,174.82,16.78468397]
[1753997243132,0.03,174.84,174.83,24.17120722]
[1753997243313,0.03,174.84,174.83,24.88120722]
[1753997244333,0.03,174.84,174.83,30.60104935]
[1753997246840,7.47453904,174.84,174.79,0.71]
[1753997247140,0.66,174.83,174.79,7.52453904]
[1753997247552,0.66,174.83,174.79,6.81453904]
[1753997248047,6.81453904,174.84,174.8,6.81453904]
[1753997248250,7.47453904,174.84,174.8,6.81453904]
[1753997248945,10.75418229,174.84,174.8,10.09418229]
[1753997249323,0.66,174.83,174.8,10.09418229]
[1753997249548,0.66,174.83,174.8,10.15418229]
[1753997250825,0.03,174.84,174.8,10.15418229]
[1753997251025,0.69,174.84,174.8,10.15418229]
[1753997251831,0.03,174.84,174.83,26.87886626]
[1753997252032,0.03,174.84,174.83,11.3761665]
[1753997252346,0.03,174.84,174.83,10.80418229]
[1753997252569,0.03,174.84,174.83,10.09418229]
[1753997252750,0.03,174.84,174.81,10.09418229]
[1753997252940,10.78418229,174.84,174.8,10.15418229]
[1753997253447,0.69,174.84,174.8,10.15418229]
[1753997254947,0.03,174.84,174.81,10.09418229]
[1753997255542,0.03,174.84,174.83,10.09418229]
[1753997255948,0.03,174.84,174.83,10.79418229]
[1753997257578,0.03,174.84,174.83,16.51402442]
[1753997257729,0.03,174.84,174.83,33.29870839]
[1753997258146,0.03,174.84,174.83,16.51402442]
[1753997260445,0.03,174.84,174.83,10.79418229]
[1753997261351,0.03,174.84,174.83,16.51402442]
[1753997264461,0.03,174.84,174.83,17.08600863]
[1753997264955,0.03,174.84,174.83,33.8706926]
[1753997265361,3.83452258,174.89,174.86,26.0]
[1753997265548,3.86496769,174.9,174.88,10.09418229]
[1753997265742,3.8650892,174.9,174.89,11.36597027]
[1753997265957,0.03,174.9,174.89,11.36597027]
[1753997266859,0.03,174.9,174.89,17.08385008]
[1753997272867,0.03,174.9,174.89,10.66597027]
[1753997273348,0.03,174.9,174.89,16.38385008]
[1753997273572,0.03,174.9,174.89,10.66597027]
[1753997274185,0.72,174.9,174.89,10.09418229]
[1753997274748,0.72,174.9,174.87,10.09418229]
[1753997275048,0.69,174.89,174.87,10.09418229]
[1753997275871,10.78418229,174.88,174.84,10.09418229]
[1753997276052,5.74776149,174.9,174.83,0.06]
[1753997276053,10.78418229,174.87,174.83,0.06]
[1753997276473,0.69,174.86,174.83,0.06]
[1753997276778,0.69,174.85,174.83,0.06]
[1753997279470,10.78418229,174.87,174.83,0.06]
[1753997279660,0.03,174.9,174.83,0.06]
[1753997279661,0.03,174.9,174.86,10.09418229]
[1753997279862,0.03,174.9,174.88,10.09418229]
[1753997280891,0.72,174.9,174.89,10.09418229]
[1753997281090,0.72,174.9,174.88,10.09418229]
[1753997281770,0.72,174.9,174.86,5.71872185]
[1753997281771,0.69,174.89,174.86,10.09418229]
[1753997281970,0.69,174.88,174.86,10.09418229]
[1753997282286,0.69,174.87,174.83,0.63198421]
[1753997282600,0.69,174.87,174.84,5.71943501]
[1753997282982,10.12418229,174.9,174.84,6.41943501]
[1753997282983,10.81418229,174.9,174.84,6.41943501]
[1753997283193,0.72,174.9,174.84,6.41943501]
[1753997283359,0.72,174.9,174.89,10.09418229]
[1753997283360,0.03,174.9,174.89,10.09418229]
[1753997283559,0.03,174.9,174.89,10.79418229]
[1753997283760,0.03,174.9,174.89,20.88836458]
[1753997283973,0.03,174.9,174.89,26.60624439]
[1753997284179,0.03,174.9,174.89,27.17803237]
[1753997286976,0.03,174.9,174.89,43.96271634]
[1753997287176,0.03,174.9,174.89,84.80271634]
[1753997288306,0.03,174.9,174.89,93.90271634]
[1753997290589,0.2,174.91,174.89,93.90271634]
[1753997290800,0.2,174.91,174.9,26.87886626]
[1753997291387,0.2,174.91,174.9,37.68304855]
[1753997291876,0.2,174.91,174.9,68.56886626]
[1753997292402,0.2,174.91,174.9,74.28641914]
[1753997292580,0.2,174.91,174.9,73.57641914]
[1753997293298,0.2,174.91,174.9,73.55641914]
[1753997294904,0.2,174.91,174.9,84.36060143]
[1753997297123,0.2,174.91,174.9,93.46060143]
[1753997297982,0.2,174.91,174.9,94.03235671]
[1753997302914,0.03,174.92,174.91,51.68468397]
[1753997303117,0.03,174.92,174.91,59.76693208]
[1753997303300,0.03,174.93,174.92,6.80052551]
[1753997303498,0.03,174.93,174.92,48.35052551]
[1753997307216,0.03,174.93,174.92,54.06742466]
[1753997308900,0.03,174.93,174.92,62.76742466]
[1753997313209,0.03,174.93,174.92,38.00210863]
[1753997313408,0.03,174.93,174.92,78.74210863]
[1753997314741,0.03,174.93,174.91,0.5717226]
[1753997314742,0.73,174.93,174.91,0.5717226]
[1753997315026,0.73,174.93,174.91,47.52052551]
[1753997315224,0.7,174.92,174.91,47.52052551]
[1753997316999,0.03,174.93,174.91,47.52052551]
[1753997317203,0.73,174.93,174.92,6.80052551]
[1753997318022,0.73,174.93,174.91,47.50052551]
[1753997318239,0.73,174.93,174.91,40.7]
[1753997318416,0.73,174.93,174.91,47.50052551]
[1753997318730,0.73,174.93,174.91,40.7]
[1753997318924,0.73,174.93,174.91,47.50052551]
[1753997319117,0.73,174.93,174.92,6.80052551]
[1753997319519,0.03,174.93,174.92,6.80052551]
[1753997320418,0.03,174.93,174.92,32.85689939]
[1753997320617,0.03,174.93,174.92,33.51689939]
[1753997320824,0.2,174.94,174.93,16.78468397]
[1753997321026,0.2,174.94,174.93,79.36178182]
[1753997322612,0.2,174.94,174.93,78.70178182]
[1753997324326,0.2,174.94,174.93,32.28520948]
[1753997324635,0.2,174.94,174.93,56.18052551]
[1753997325822,0.2,174.94,174.93,21.21709785]
[1753997326033,0.2,174.94,174.93,61.87709785]
[1753997328716,0.2,174.94,174.93,78.66178182]
[1753997328914,0.2,174.94,174.93,79.32178182]
[1753997329750,0.03,174.95,174.93,86.12230733]
[1753997329919,0.03,174.95,174.94,14.83267557]
[1753997330841,0.03,174.95,174.94,61.18892113]
[1753997332010,0.03,174.95,174.94,86.6736051]
[1753997332211,0.03,174.96,174.95,16.78468397]
[1753997332440,0.03,174.96,174.95,31.04573499]
[1753997332738,3.85528654,174.97,174.95,36.76165382]
[1753997332914,0.03,174.98,174.97,23.58520948]
[1753997333114,0.03,174.98,174.97,32.28520948]
[1753997333340,0.03,174.98,174.97,32.94520948]
[1753997333839,0.03,174.98,174.97,8.7]
[1753997333840,0.73,174.98,174.97,8.7]
[1753997336037,7.53052551,174.98,174.97,8.7]
[1753997336218,11.78754423,174.98,174.97,8.7]
[1753997336840,7.53052551,174.98,174.97,8.7]
[1753997337013,11.78594115,174.98,174.97,8.7]
[1753997338440,11.78594115,174.98,174.94,49.32]
[1753997338646,7.53052551,174.98,174.94,49.32]
[1753997339541,0.73,174.98,174.94,49.32]
[1753997339956,0.73,174.98,174.94,61.83674799]
[1753997340163,0.73,174.98,174.94,56.78052551]
[1753997340322,0.03,174.98,174.94,56.78052551]
[1753997341438,0.73,174.98,174.94,56.78052551]
[1753997341637,0.73,174.98,174.92,15.50052551]
[1753997341638,0.7,174.97,174.92,15.50052551]
[1753997341847,6.80052551,174.96,174.92,49.28]
[1753997342152,0.7,174.95,174.92,49.28]
[1753997342660,0.7,174.97,174.93,6.80052551]
[1753997343030,7.50052551,174.97,174.92,57.31221542]
[1753997343743,0.7,174.97,174.92,57.31221542]
[1753997343931,0.7,174.96,174.92,9.27168991]
[1753997344138,6.80052551,174.94,174.92,8.7]
[1753997344555,7.50052551,174.94,174.91,8.76]
[1753997344730,0.7,174.94,174.91,8.76]
[1753997345370,4.52793694,174.94,174.91,8.76]
[1753997347844,3.82793694,174.94,174.91,8.76]
[1753997348046,3.82793694,174.94,174.91,9.42]
[1753997348660,3.82793694,174.95,174.91,16.22052551]
[1753997348958,3.82793694,174.94,174.91,16.22052551]
[1753997349537,4.52793694,174.95,174.91,16.22052551]
[1753997350948,3.82793694,174.95,174.91,16.22052551]
[1753997352334,3.82793694,174.95,174.91,15.56052551]
[1753997352581,3.82793694,174.95,174.93,6.80052551]
[1753997352737,3.82793694,174.97,174.94,6.80052551]
[1753997352938,3.82793694,174.97,174.96,6.80052551]
[1753997353447,3.82793694,174.97,174.96,7.46052551]
[1753997355352,3.82793694,174.97,174.96,0.66]
[1753997357372,3.82793694,174.97,174.95,6.80052551]
[1753997357745,3.82793694,174.97,174.95,7.46052551]
[1753997359675,3.82793694,174.96,174.95,7.46052551]
[1753997359972,3.82793694,174.97,174.95,7.46052551]
[1753997360175,3.82793694,174.97,174.96,8.03208472]
[1753997360377,3.82793694,174.97,174.96,7.37208472]
[1753997360546,3.85793694,174.98,174.96,8.03208472]
[1753997360749,3.85793694,174.98,174.97,7.46052551]
[1753997361871,0.03,174.98,174.97,16.16052551]
[1753997362183,0.03,174.99,174.97,38.66047495]
[1753997362485,0.03,175.0,174.99,16.78468397]
[1753997362647,0.03,175.0,174.99,23.58520948]
[1753997362852,0.03,175.0,174.99,24.24520948]
[1753997363275,0.2,175.01,174.99,24.24520948]
[1753997363480,0.2,175.01,175.0,1.23142857]
[1753997363652,0.2,175.01,175.0,6.80052551]
[1753997364058,0.2,175.01,175.0,7.46052551]
[1753997364274,0.2,175.01,175.0,8.03195408]
[1753997364784,0.2,175.01,175.0,7.37195408]
[1753997365555,0.2,175.01,175.0,8.03195408]
[1753997365874,0.2,175.01,175.0,7.46052551]
[1753997368373,13.41464494,175.01,174.95,33.52052551]
[1753997368584,6.80052551,174.99,174.96,57.26468397]
[1753997368890,3.82298499,174.98,174.95,0.06]
[1753997369076,6.80052551,174.98,174.95,0.72]
[1753997369259,6.80052551,174.98,174.96,0.66]
[1753997369861,6.80052551,174.97,174.95,0.72]
[1753997370764,6.80052551,174.98,174.95,0.72]
[1753997371577,6.41428571,175.0,174.95,0.72]
[1753997371785,6.80052551,174.98,174.95,0.72]
[1753997375079,10.62321506,174.97,174.95,0.06]
[1753997375284,6.80052551,174.97,174.95,0.06]
[1753997376294,0.68,174.98,174.95,0.06]
[1753997376670,6.80052551,174.98,174.95,0.77]
[1753997376869,3.82268041,174.97,174.95,0.77]
[1753997378806,7.48052551,175.0,174.96,0.71]
[1753997378984,3.82341151,174.99,174.96,0.71]
[1753997380907,10.62393702,174.99,174.96,0.71]
[1753997381077,6.80052551,174.99,174.96,0.71]
[1753997381280,0.68,175.0,174.96,0.71]
[1753997381674,7.48052551,175.0,174.96,0.71]
[1753997381874,7.51052551,175.0,174.96,0.71]
[1753997382092,0.2,175.01,174.99,23.58520948]
[1753997382409,0.2,175.11,175.09,42.78468397]
[1753997382608,0.2,175.11,175.1,24.8663117]
[1753997382783,0.2,175.11,175.1,50.8663117]
[1753997383189,0.2,175.11,175.1,56.57733397]
[1753997384310,1e-08,175.11,175.1,37.73291051]
[1753997384483,0.2,175.18,175.14,42.78468397]
[1753997384686,0.2,175.18,175.15,24.15614867]
[1753997384988,0.2,175.18,175.15,29.11718539]
[1753997385185,0.2,175.18,175.15,34.82657733]
[1753997386495,0.2,175.18,175.15,60.82657733]
[1753997389499,0.2,175.18,175.17,26.0]
[1753997389701,0.68,175.25,175.18,16.78468397]
[1753997389897,0.68,175.25,175.24,11.05156223]
[1753997390892,0.68,175.25,175.21,0.57074367]
[1753997391111,0.68,175.25,175.23,11.05156223]
[1753997391307,0.68,175.25,175.24,0.57064597]
[1753997392730,0.68,175.25,175.23,0.57067853]
[1753997392908,0.68,175.24,175.23,0.57067853]
[1753997394604,0.68,175.26,175.23,0.57067853]
[1753997394822,0.68,175.25,175.23,0.57067853]
[1753997395022,0.68,175.24,175.23,0.57067853]
[1753997395314,11.73156223,175.24,175.23,0.57067853]
[1753997395524,11.73156223,175.24,175.22,26.0]
[1753997395687,0.68,175.23,175.22,26.0]
[1753997395892,11.73156223,175.26,175.22,26.0]
[1753997396110,0.68,175.25,175.22,26.0]
[1753997396611,0.68,175.24,175.22,26.0]
[1753997396812,11.73156223,175.23,175.22,26.0]
[1753997397021,11.73156223,175.23,175.19,42.78468397]
[1753997397235,11.05156223,175.2,175.19,42.78468397]
[1753997397733,11.73156223,175.21,175.19,42.78468397]
[1753997398037,0.68,175.21,175.19,42.78468397]
[1753997398205,55.30068789,175.35,175.2,29.11702245]
[1753997398206,0.68,175.25,175.2,29.11702245]
[1753997398413,52.39156223,175.27,175.23,26.0]
[1753997398721,0.68,175.26,175.23,26.57067853]
[1753997403224,11.05156223,175.25,175.23,26.57067853]
[1753997403520,11.05156223,175.24,175.23,26.0]
[1753997403726,11.73156223,175.24,175.15,16.78468397]
[1753997403891,11.05156223,175.18,175.15,18.06562316]
[1753997404104,11.05156223,175.18,175.17,42.78468397]
[1753997404331,11.05156223,175.18,175.17,16.78468397]
[1753997404522,11.05156223,175.19,175.18,42.78468397]
[1753997404918,7.4452941,175.19,175.18,26.0]
[1753997405108,7.4452941,175.19,175.12,17.50468397]
[1753997405311,6.7852941,175.15,175.12,17.50468397]
[1753997405612,6.7852941,175.13,175.11,0.06]
[1753997405933,6.7852941,175.12,175.11,0.06]
[1753997407031,11.72610612,175.14,175.12,26.0]
[1753997407329,56.63299954,175.34,175.17,16.78468397]
[1753997407330,40.62,175.2,175.17,16.78468397]
[1753997407506,40.62,175.2,175.17,29.14166409]
[1753997407712,0.66,175.21,175.17,29.14166409]
[1753997408012,0.66,175.21,175.18,11.06610612]
[1753997408203,0.66,175.21,175.17,18.07555797]
[1753997408412,0.66,175.21,175.18,11.06610612]
[1753997408709,11.06610612,175.19,175.16,26.0]
[1753997409016,0.66,175.18,175.16,26.0]
[1753997409926,11.72610612,175.21,175.16,42.77509779]
[1753997410122,0.66,175.21,175.19,11.06610612]
[1753997410434,0.66,175.21,175.18,11.06610612]
[1753997410807,0.66,175.2,175.16,37.06610612]
[1753997411032,0.66,175.19,175.16,37.06610612]
[1753997411234,0.66,175.18,175.16,26.0]
[1753997411625,11.72610612,175.2,175.16,26.0]
[1753997411935,0.66,175.19,175.16,26.0]
[1753997412130,0.66,175.19,175.16,37.06610612]
[1753997412322,41.3,175.22,175.18,11.06610612]
[1753997412630,0.66,175.21,175.18,11.06610612]
[1753997415010,0.66,175.21,175.16,27.29090659]
[1753997415222,40.64,175.21,175.19,11.06610612]
[1753997416241,11.72610612,175.23,175.19,11.06610612]
[1753997416545,40.6,175.21,175.19,11.06610612]
[1753997417252,40.6,175.21,175.16,26.0]
[1753997417253,11.72610612,175.2,175.16,26.0]
[1753997417554,11.06610612,175.18,175.17,26.0]
[1753997417717,11.06610612,175.19,175.17,26.0]
[1753997417917,11.06610612,175.2,175.17,26.0]
[1753997418120,0.66,175.19,175.17,26.0]
[1753997418425,0.66,175.19,175.15,26.0]
[1753997418426,11.72610612,175.19,175.15,26.0]
[1753997418621,11.06610612,175.19,175.15,26.0]
[1753997418842,0.66,175.18,175.15,26.0]
[1753997419235,11.06610612,175.19,175.15,37.78610612]
[1753997419440,11.06610612,175.19,175.15,26.0]
[1753997419628,11.06610612,175.16,175.12,27.85079009]
[1753997419830,52.30610612,175.16,175.12,54.57079009]
[1753997420017,41.24,175.16,175.12,54.57079009]
[1753997420720,41.24,175.16,175.12,60.28112905]
[1753997420936,40.58,175.16,175.13,11.78610612]
[1753997421322,40.58,175.16,175.13,17.49608468]
[1753997421529,40.58,175.16,175.13,16.77608468]
[1753997421730,0.66,175.2,175.15,11.06610612]
[1753997421921,40.56,175.19,175.16,11.78610612]
[1753997422545,40.56,175.19,175.16,0.72]
[1753997422933,40.56,175.19,175.16,17.49516287]
[1753997422934,40.58,175.19,175.16,17.49516287]
[1753997423340,0.66,175.2,175.16,17.49516287]
[1753997423532,40.58,175.19,175.16,17.49516287]
[1753997424047,0.66,175.2,175.16,17.49516287]
[1753997424245,14.07430854,175.26,175.19,11.06610612]
[1753997424545,41.24,175.25,175.23,11.06610612]
[1753997425728,40.6,175.24,175.23,11.06610612]
[1753997426358,44.41828367,175.24,175.23,11.06610612]
[1753997426521,40.6,175.24,175.23,11.06610612]
[1753997426928,40.6,175.24,175.2,6.99843555]
[1753997427238,3.82567837,175.23,175.2,6.99843555]
[1753997427547,3.82567837,175.23,175.22,11.06610612]
[1753997428858,3.82464008,175.23,175.22,11.06610612]
[1753997430275,3.82464008,175.23,175.22,17.49321718]
[1753997430439,3.82464008,175.23,175.22,43.49321718]
[1753997430635,3.82487639,175.25,175.24,26.0]
[1753997430951,3.82487639,175.25,175.24,37.06610612]
[1753997431150,3.82487639,175.25,175.24,37.78610612]
[1753997431454,3.85487639,175.26,175.24,11.78610612]
[1753997431653,0.03,175.26,175.25,11.06610612]
[1753997431849,3.85487639,175.26,175.25,11.78610612]
[1753997432049,3.85487639,175.26,175.25,17.49224021]
[1753997432351,0.03,175.26,175.25,17.49224021]
[1753997435067,0.03,175.26,175.25,34.27692418]
[1753997442758,0.03,175.26,175.25,29.98624498]
[1753997446274,0.03,175.26,175.25,70.44624498]
[1753997451363,0.03,175.26,175.25,69.72624498]
[1753997451770,0.03,175.26,175.25,70.41624498]
[1753997462286,0.03,175.28,175.27,42.78468397]
[1753997462487,0.03,175.28,175.27,90.57065918]
[1753997462681,0.03,175.28,175.27,91.26065918]
[1753997463567,0.69,175.34,175.27,50.82065918]
[1753997463871,0.69,175.34,175.33,6.77542692]
[1753997467683,3.81358498,175.38,175.33,12.4789574]
[1753997467897,0.66,175.36,175.35,6.77542692]
[1753997469409,4.47358498,175.38,175.35,6.77542692]
[1753997469577,0.66,175.36,175.35,26.0]
[1753997469781,0.66,175.37,175.35,32.77542692]
[1753997470318,0.03,175.36,175.35,26.0]
[1753997470599,0.03,175.36,175.35,32.77542692]
[1753997471409,0.03,175.36,175.35,39.75859486]
[1753997471618,0.03,175.36,175.35,56.54327883]
[1753997472194,0.03,175.38,175.37,23.56011089]
[1753997472427,0.03,175.38,175.37,64.55033384]
[1753997472625,0.03,175.38,175.37,65.26033384]
[1753997473424,0.03,175.38,175.37,70.96256341]
[1753997474926,0.03,175.38,175.37,70.25256341]
[1753997475093,0.03,175.38,175.37,70.96256341]
[1753997486129,0.66,175.45,175.41,42.78468397]
[1753997486313,0.66,175.47,175.46,31.69930468]
[1753997486521,0.66,175.49,175.46,55.25941557]
[1753997486833,0.66,175.49,175.47,17.35458195]
[1753997487015,0.66,175.48,175.47,26.0]
[1753997487210,0.66,175.51,175.5,26.0]
[1753997487413,0.1,175.54,175.5,40.1206544]
[1753997487414,0.66,175.53,175.5,40.1206544]
[1753997487610,0.1,175.54,175.52,6.77542692]
[1753997487817,0.1,175.54,175.53,6.77542692]
[1753997488921,0.76,175.54,175.53,6.77542692]
[1753997489323,0.76,175.54,175.53,26.0]
[1753997492043,0.76,175.54,175.5,40.4]
[1753997492044,7.53542692,175.54,175.5,26.0]
[1753997492228,6.77542692,175.52,175.5,26.0]
[1753997492426,7.43542692,175.51,175.43,3.62878316]
[1753997492631,6.77542692,175.49,175.44,63.96011089]
[1753997492933,7.43542692,175.48,175.44,16.78468397]
[1753997493136,6.77542692,175.46,175.42,16.78468397]
[1753997493344,6.77542692,175.45,175.42,16.78468397]
[1753997493528,7.43542692,175.44,175.41,16.78468397]
[1753997493739,7.43542692,175.43,175.41,16.78468397]
[1753997493917,6.77542692,175.43,175.4,16.78468397]
[1753997494118,6.77542692,175.5,175.37,0.71]
[1753997494119,6.77542692,175.41,175.37,0.71]
[1753997494348,6.77542692,175.5,175.37,6.77542692]
[1753997494525,6.77542692,175.42,175.41,26.0]
[1753997494727,7.46542692,175.42,175.41,26.0]
[1753997495126,7.46542692,175.42,175.4,26.0]
[1753997495332,7.46542692,175.42,175.41,26.0]
[1753997495536,0.69,175.45,175.42,16.78468397]
[1753997495737,0.69,175.48,175.44,6.77542692]
[1753997496022,0.69,175.5,175.47,6.77542692]
[1753997496228,5.79681964,175.54,175.49,6.77542692]
[1753997496229,0.69,175.52,175.49,6.77542692]
[1753997496430,0.69,175.52,175.51,6.77542692]
[1753997496638,0.79,175.54,175.51,6.77542692]
[1753997496921,0.79,175.54,175.52,11.01015017]
[1753997497822,0.1,175.54,175.53,11.01015017]
[1753997498025,11.80015017,175.54,175.49,11.01015017]
[1753997498227,0.69,175.53,175.49,11.01015017]
[1753997498427,0.69,175.52,175.49,11.01015017]
[1753997498624,0.1,175.54,175.49,0.72]
[1753997498832,0.79,175.54,175.52,11.01015017]
[1753997499044,0.79,175.54,175.53,11.01015017]
[1753997499443,0.1,175.54,175.53,11.01015017]
[1753997500227,0.1,175.54,175.5,1.28980056]
[1753997500428,0.1,175.54,175.53,11.01015017]
[1753997500854,0.1,175.54,175.52,11.01015017]
[1753997501025,0.1,175.54,175.51,0.72]
[1753997501232,0.1,175.54,175.52,11.01015017]
[1753997503845,0.1,175.54,175.5,5.69791305]
[1753997504027,0.1,175.54,175.52,11.01015017]
[1753997504438,0.1,175.54,175.53,11.01015017]
[1753997505430,0.1,175.54,175.53,11.73015017]
[1753997506851,0.1,175.54,175.53,26.0]
[1753997507034,11.80015017,175.54,175.51,26.0]
[1753997507236,0.69,175.53,175.51,26.0]
[1753997507440,11.70015017,175.53,175.48,34.21342912]
[1753997507741,0.1,175.54,175.46,0.56993046]
[1753997507742,11.01015017,175.5,175.46,6.98900792]
[1753997507924,0.69,175.52,175.41,14.25199441]
[1753997507925,11.01015017,175.47,175.44,0.72]
[1753997508124,11.01015017,175.47,175.46,26.0]
[1753997508345,11.70015017,175.47,175.42,11.73015017]
[1753997508633,11.01015017,175.51,175.46,16.70945485]
[1753997508939,46.17673413,175.54,175.45,17.35464692]
[1753997508940,11.70015017,175.5,175.45,17.35464692]
[1753997509144,0.69,175.5,175.45,11.73015017]
[1753997509339,11.70015017,175.5,175.45,11.73015017]
[1753997509731,0.69,175.49,175.41,11.73015017]
[1753997509950,11.01015017,175.45,175.44,26.0]
[1753997514363,11.70015017,175.47,175.44,26.0]
[1753997514861,0.69,175.47,175.44,26.0]
[1753997515238,11.01015017,175.47,175.44,26.0]
[1753997515443,11.70015017,175.47,175.44,26.0]
[1753997515865,0.69,175.47,175.44,26.0]
[1753997516063,11.70015017,175.47,175.44,26.0]
[1753997516267,0.69,175.47,175.44,26.0]
[1753997516467,11.70015017,175.47,175.44,26.0]
[1753997517344,0.69,175.47,175.44,26.0]
[1753997518444,11.01015017,175.48,175.44,26.72]
[1753997518647,11.70015017,175.48,175.44,26.72]
[1753997519148,0.69,175.47,175.44,26.0]
[1753997519349,11.70015017,175.48,175.44,26.72]
[1753997520271,0.69,175.48,175.44,37.73015017]
[1753997520465,11.01015017,175.49,175.45,0.72]
[1753997520674,0.69,175.48,175.44,37.73015017]
[1753997520853,11.70015017,175.48,175.44,37.73015017]
[1753997521053,0.69,175.48,175.45,11.01015017]
[1753997521265,0.69,175.47,175.44,37.01015017]
[1753997521775,11.01015017,175.48,175.44,37.73015017]
[1753997522174,19.93961145,175.53,175.44,26.0]
[1753997522357,0.69,175.47,175.44,26.0]
[1753997522682,3.81394459,175.52,175.44,26.72]
[1753997522683,11.01015017,175.48,175.44,26.72]
[1753997522890,6.76348859,175.48,175.44,26.72]
[1753997523168,0.69,175.5,175.46,6.76348859]
[1753997523353,50.24060143,175.56,175.47,0.72]
[1753997523354,6.76348859,175.51,175.47,0.72]
[1753997523674,0.69,175.5,175.47,0.72]
[1753997523861,7.45348859,175.5,175.46,6.76348859]
[1753997524062,7.45348859,175.49,175.44,33.48348859]
[1753997524278,7.46348859,175.51,175.46,6.76348859]
[1753997524480,0.7,175.5,175.46,7.43348859]
[1753997524667,7.46348859,175.5,175.46,7.43348859]
[1753997525470,40.48,175.54,175.49,6.76348859]
[1753997525471,0.8,175.54,175.49,6.76348859]
[1753997525678,0.8,175.54,175.5,7.43348859]
[1753997525882,4.61753196,175.54,175.5,7.43348859]
[1753997526083,4.61753196,175.54,175.51,6.76348859]
[1753997526387,0.1,175.54,175.53,6.76348859]
[1753997526583,0.1,175.54,175.52,6.76348859]
[1753997526789,7.46348859,175.53,175.49,26.0]
[1753997526991,0.1,175.54,175.45,33.43348859]
[1753997526992,6.76348859,175.5,175.45,33.43348859]
[1753997527179,6.76348859,175.5,175.46,0.67]
[1753997527381,6.76348859,175.5,175.47,0.67]
[1753997527682,0.7,175.52,175.47,0.67]
[1753997527909,7.46348859,175.52,175.48,0.67]
[1753997528880,0.1,175.54,175.48,7.43348859]
[1753997529088,0.7,175.53,175.48,0.67]
[1753997529290,0.1,175.54,175.49,0.67]